fUST/lending_fUST_20251116
["ID","MTS","AMOUNT","RATE_DAILY","PERIOD"]
[394114812,1763304097307,1670.54,0.00038634,120]
[394114813,1763304097567,1670.54,0.00038634,120]
[394114814,1763304097869,1670.54,0.00038634,120]
[394114815,1763304098128,1670.54,0.00038634,120]
[394114816,1763304098387,1670.55000001,0.00038634,120]
[394114817,1763304127461,500.0,0.00038634,120]
[394114818,1763304127733,500.0,0.00038634,120]
[394114819,1763304127969,500.0,0.00038634,120]
[394114821,1763304196997,67079.29743354,0.00013701,2]
[394114822,1763304204389,-387.51183085,0.00013701,2]
[394114823,1763304208061,-152.88862893,0.00013701,2]
[394114824,1763304209978,-371.20125975,0.00013701,2]
[394114825,1763304212380,-157.78090845,0.00013701,2]
[394114826,1763304215597,-216.96010571,0.00013701,2]
[394114827,1763304219098,-151.51062978,0.00013701,2]
[394114828,1763304221217,-356.96282307,0.00013701,2]
[394114829,1763304222667,500.0,0.00038634,120]
[394114830,1763304224657,-741.834414,0.00013701,2]
[394114832,1763304226484,-531.26706152,0.00013701,2]
[394114833,1763304228334,-351.01278781,0.00013701,2]
[394114834,1763304231920,-223.95263173,0.00013701,2]
[394114835,1763304236986,-189.39120443,0.00013693,2]
[394114836,1763304239156,-208.36124201,0.00013693,2]
[394114837,1763304242603,-154.15334276,0.00013693,2]
[394114838,1763304245078,-306.02482211,0.00013693,2]
[394114839,1763304247396,-259.2295785,0.00013693,2]
[394114840,1763304249815,-247.09279327,0.00013693,2]
[394114841,1763304252777,-274.44696721,0.00013693,2]
[394114842,1763304256999,-251.72901037,0.00013693,2]
[394114843,1763304259839,-168.0341074,0.00013693,2]
[394114844,1763304263358,-197.39548942,0.00013693,2]
[394114845,1763304264965,-215.92871607,0.00013693,2]
[394114846,1763304264988,-29.93118738,0.000137,2]
[394114847,1763304267752,-174.99184844,0.000137,2]
[394114848,1763304269366,-95.07696418,0.000137,2]
[394114849,1763304269389,-189.0370999,0.00013701,2]
[394114850,1763304274214,-368.04522985,0.000137,2]
[394114851,1763304276602,-131.95477015,0.000137,2]
[394114852,1763304276631,-82.80292628,0.000137,2]
[394114853,1763304280246,-161.45121328,0.00013563,2]
[394114854,1763304323940,-104.37233414,0.00013563,2]
[394114855,1763304323964,-300.0,0.000137,2]
[394114856,1763304323997,-418.98822582,0.000137,2]
[394114857,1763304324024,-819088.78238496,0.00013701,2]
[394114858,1763304324047,-500.0,0.00013701,2]
[394114859,1763304324200,-500.0,0.00013773,2]
[394114860,1763304324234,-500.0,0.00013773,2]
[394114861,1763304324256,-500.0,0.00013773,2]
[394114862,1763304324278,-500.0,0.00013773,2]
[394114863,1763304324300,-526.03490837,0.00013773,2]
[394114864,1763304324323,-500.0,0.00013773,2]
[394114865,1763304324345,-500.0,0.00013773,2]
[394114866,1763304324368,-262.53,0.00013793,2]
[394114867,1763304324390,-919.08583496,0.00013794,2]
[394114868,1763304324414,-1389.21,0.00013794,2]
[394114869,1763304324438,-1389.21,0.00013794,2]
[394114870,1763304324461,-1389.21,0.00013794,2]
[394114871,1763304324483,-1389.21,0.00013794,2]
[394114872,1763304324504,-1389.21,0.00013794,2]
[394114873,1763304324527,-1389.21,0.00013794,2]
[394114874,1763304324550,-1389.21,0.00013794,2]
[394114875,1763304324573,-1389.21,0.00013794,2]
[394114876,1763304324600,-1389.21,0.00013794,2]
[394114877,1763304324625,-1389.21,0.00013794,2]
[394114878,1763304324650,-1389.21,0.00013794,2]
[394114879,1763304324674,-1389.21,0.00013794,2]
[394114880,1763304324696,-1389.21,0.00013794,2]
[394114881,1763304324719,-1389.21,0.00013794,2]
[394114882,1763304324743,-1389.21,0.00013794,2]
[394114883,1763304324765,-1389.21,0.00013794,2]
[394114884,1763304324787,-1389.21,0.00013794,2]
[394114885,1763304324810,-1389.21,0.00013794,2]
[394114886,1763304324834,-1389.21,0.00013794,2]
[394114887,1763304324857,-1389.21,0.00013794,2]
[394114888,1763304324880,-1389.21,0.00013794,2]
[394114889,1763304324904,-1389.21,0.00013794,2]
[394114890,1763304324927,-1389.21,0.00013794,2]
[394114891,1763304324950,-1389.39005853,0.00013794,2]
[394114892,1763304366125,205.92963783,0.00038598,120]
[394114893,1763304366457,250.0,0.00038598,120]
[394114894,1763304366543,225.75297373,0.00038598,120]
[394114895,1763304366828,151.0,0.00038598,120]
[394114896,1763304367208,250.0,0.00038598,120]
[394114897,1763304367441,156.587,0.00038598,120]
[394114898,1763304367665,-184.13098597,0.000133,2]
[394114899,1763304367811,250.0,0.00038598,120]
[394114900,1763304368069,156.587,0.00038598,120]
[394114901,1763304368656,250.0,0.00038598,120]
[394114902,1763304368716,265.52211254,0.00038598,120]
[394114903,1763304368751,250.0,0.00038598,120]
[394114904,1763304368912,293.98095963,0.00038598,120]
[394114905,1763304368991,152.28205997,0.00038598,120]
[394114906,1763304369093,250.0,0.00038598,120]
[394114907,1763304369728,250.0,0.00038598,120]
[394114908,1763304370925,250.0,0.00038598,120]
[394114909,1763304371618,250.0,0.00038598,120]
[394114910,1763304371688,189.71957716,0.00038598,120]
[394114911,1763304372016,271.09113254,0.00038598,120]
[394114912,1763304372084,2510.0,0.00038598,120]
[394114913,1763304372234,250.0,0.00038598,120]
[394114914,1763304372732,2510.0,0.00038598,120]
[394114915,1763304374597,250.0,0.00038598,120]
[394114916,1763304374696,233.36962146,0.00038598,120]
[394114917,1763304375384,170.0,0.00038598,120]
[394114918,1763304375805,256.47881943,0.00038598,120]
[394114919,1763304377996,243.34507811,0.00038598,120]
[394114920,1763304379219,256.91080674,0.00038598,120]
[394114922,1763304389313,2005.98,0.00038598,20]
[394114923,1763304399473,-469.56801186,0.000132,2]
[394114925,1763304401896,-170.54440839,0.000132,2]
[394114926,1763304405397,-598.07037494,0.000132,2]
[394114927,1763304411416,-262.06839354,0.000132,2]
[394114928,1763304413876,-283.17773406,0.000132,2]
[394114929,1763304416732,-354.12447182,0.000132,2]
[394114930,1763304418959,-230.83675562,0.000132,2]
[394114931,1763304421357,-168.69568844,0.000132,2]
[394114932,1763304424900,-296.9038281,0.000132,2]
[394114933,1763304426350,-184.64882398,0.000132,2]
[394114934,1763304430971,-210.55590752,0.000132,2]
[394114935,1763304432747,-625.44777549,0.000132,2]
[394114936,1763304434763,-181.88495492,0.000132,2]
[394114937,1763304437100,-293.64062628,0.000132,2]
[394114938,1763304467346,500.0,0.00038598,120]
[394114939,1763304467586,500.0,0.00038598,120]
[394114940,1763304467822,500.0,0.00038598,120]
[394114941,1763304468065,396.02830884,0.00038598,120]
[394114942,1763304502587,-291.13882619,0.000132,2]
[394114943,1763304502611,-122.02266776,0.0001325,2]
[394114944,1763304512598,1000.0,0.00038598,30]
[394114945,1763304512829,1000.0,0.00038598,30]
[394114946,1763304513069,1000.0,0.00038598,30]
[394114947,1763304513311,1000.0,0.00038598,30]
[394114948,1763304513543,1000.0,0.00038598,30]
[394114949,1763304513776,1000.0,0.00038598,30]
[394114950,1763304514010,1000.0,0.00038598,30]
[394114951,1763304514253,300.0,0.00038598,30]
[394114952,1763304517774,500.0,0.00038598,120]
[394114953,1763304518012,500.0,0.00038598,120]
[394114954,1763304518246,500.0,0.00038598,120]
[394114955,1763304518521,500.0,0.00038598,120]
[394114956,1763304518762,500.0,0.00038598,120]
[394114957,1763304518992,500.0,0.00038598,120]
[394114958,1763304519246,500.0,0.00038598,120]
[394114959,1763304519521,500.0,0.00038598,120]
[394114960,1763304519751,500.0,0.00038598,120]
[394114961,1763304519991,500.0,0.00038598,120]
[394114962,1763304520217,500.0,0.00038598,120]
[394114963,1763304520442,500.0,0.00038598,120]
[394114964,1763304520708,500.0,0.00038598,120]
[394114965,1763304520963,500.0,0.00038598,120]
[394114966,1763304521275,500.0,0.00038598,120]
[394114967,1763304521509,500.0,0.00038598,120]
[394114968,1763304521852,500.0,0.00038598,120]
[394114969,1763304522092,500.0,0.00038598,120]
[394114970,1763304522336,500.0,0.00038598,120]
[394114971,1763304522577,496.656898,0.00038598,120]
[394114973,1763304544715,695.91,0.00038598,120]
[394114974,1763304544964,695.91,0.00038598,120]
[394114975,1763304545275,695.91,0.00038598,120]
[394114976,1763304545507,695.91,0.00038598,120]
[394114977,1763304545750,695.91,0.00038598,120]
[394114978,1763304545986,695.91,0.00038598,120]
[394114979,1763304546232,695.91,0.00038598,120]
[394114980,1763304546473,695.91,0.00038598,120]
[394114981,1763304546760,695.91,0.00038598,120]
[394114982,1763304547002,695.91,0.00038598,120]
[394114983,1763304547237,695.91,0.00038598,120]
[394114984,1763304547678,695.91,0.00038598,120]
[394114985,1763304547955,695.91,0.00038598,120]
[394114986,1763304548207,695.91,0.00038598,120]
[394114987,1763304548445,695.91,0.00038598,120]
[394114988,1763304549108,695.91,0.00038598,120]
[394114989,1763304549355,695.91,0.00038598,120]
[394114990,1763304549626,695.91,0.00038598,120]
[394114991,1763304549861,695.91,0.00038598,120]
[394114992,1763304550098,695.91,0.00038598,120]
[394114993,1763304550335,695.91,0.00038598,120]
[394114994,1763304550578,695.91,0.00038598,120]
[394114995,1763304550828,695.91,0.00038598,120]
[394114996,1763304551093,696.05860356,0.00038598,120]
[394114997,1763304551261,863.85397064,0.00017455,7]
[394114998,1763304556525,500.0,0.00038598,120]
[394114999,1763304556752,500.0,0.00038598,120]
[394115000,1763304557007,500.0,0.00038598,120]
[394115001,1763304557251,469.5924608,0.00038598,120]
[394115007,1763304632170,-125.15188386,0.0001325,2]
[394115008,1763304632179,-27.5492177,0.000133,2]
[394115009,1763304632189,-570.91363972,0.00013573,2]
[394115010,1763304632231,-1591.90022461,0.00013573,2]
[394115011,1763304632241,-300.0,0.000136,2]
[394115012,1763304632250,-4607.63878299,0.00013601,2]
[394115013,1763304632281,-137.25223703,0.00013601,2]
[394115304,1763304640624,-3e-08,0.00013601,2]
[394115668,1763304644109,-885255.10897995,0.00013601,2]
[394115670,1763304644119,-500.0,0.00013673,2]
[394115672,1763304644129,-500.0,0.00013673,2]
[394115674,1763304644138,-500.0,0.00013673,2]
[394115676,1763304644148,-500.0,0.00013673,2]
[394115678,1763304644157,-470.26798814,0.00013673,2]
[394115680,1763304644166,-500.0,0.00013673,2]
[394115682,1763304644175,-500.0,0.00013673,2]
[394115684,1763304644184,-500.0,0.00013699,2]
[394115686,1763304644194,-166.0780867,0.00013725,2]
[394115688,1763304644203,-500.0,0.00013773,2]
[394115690,1763304644212,-500.0,0.00013773,2]
[394115692,1763304644224,-187.87693389,0.00014,2]
[394115694,1763304644233,-377.15849167,0.00014,2]
[394115696,1763304644243,-600.0,0.00014076,2]
[394115698,1763304644252,-228.50682354,0.00014107,2]
[394115700,1763304644261,-366.13800148,0.00014107,2]
[394115702,1763304644270,-1000.0,0.00014221,2]
[394115705,1763304644280,-1014.98136842,0.00014221,2]
[394115706,1763304644289,-580.93353525,0.00014221,2]
[394115708,1763304644299,-1000.0,0.00014221,2]
[394115710,1763304644308,-1000.0,0.00014221,2]
[394115712,1763304644317,-500.0,0.00014247,2]
[394115715,1763304644327,-381.46090835,0.00014321,2]
[394115716,1763304644336,-700.0,0.000144,2]
[394115719,1763304644345,-436.82519974,0.0001444,2]
[394115721,1763304644355,-69222.2458354,0.00014521,2]
[394115723,1763304644364,-786.28535953,0.00014539,2]
[394115725,1763304644373,-634.47472687,0.00014573,2]
[394115727,1763304644383,-500.0,0.00014573,2]
[394115729,1763304644392,-500.0,0.00014573,2]
[394115731,1763304644400,-500.0,0.00014573,2]
[394115733,1763304644410,-500.0,0.00014573,2]
[394115735,1763304644419,-500.0,0.00014573,2]
[394115737,1763304644428,-500.0,0.00014573,2]
[394115739,1763304644437,-411.37519729,0.00014573,2]
[394115741,1763304644447,-500.0,0.00014573,2]
[394115743,1763304644457,-500.0,0.00014573,2]
[394115745,1763304644466,-500.0,0.00014573,2]
[394115747,1763304644474,-524.32488412,0.00014573,2]
[394115749,1763304644483,-500.0,0.00014573,2]
[394115751,1763304644493,-500.0,0.00014573,2]
[394115753,1763304644502,-500.0,0.00014573,2]
[394115755,1763304644511,-500.0,0.00014573,2]
[394115757,1763304644520,-500.0,0.00014573,2]
[394115759,1763304644530,-500.0,0.00014573,2]
[394115761,1763304644539,-500.0,0.00014573,2]
[394115762,1763304644548,-500.0,0.00014573,2]
[394115764,1763304644557,-456.80411814,0.00014573,2]
[394115767,1763304644566,-500.0,0.00014573,2]
[394115769,1763304644575,-501.80502692,0.00014573,2]
[394115770,1763304644585,-500.0,0.00014573,2]
[394115773,1763304644594,-12799.91035716,0.00014612,2]
[394115774,1763304644603,-1397.84063917,0.00014638,2]
[394115777,1763304644613,-2184.1259987,0.00014737,2]
[394115779,1763304644622,-2149.0,0.00014746,2]
[394115781,1763304644633,-629.0,0.00014746,2]
[394115782,1763304644642,-988.0,0.00014746,2]
[394115785,1763304644652,-1500.0,0.00014768,2]
[394115787,1763304644661,-503.11260544,0.00014768,2]
[394115788,1763304644670,-1500.0,0.00014768,2]
[394115790,1763304644680,-199.84818569,0.00014778,2]
[394115792,1763304644690,-500.0,0.00014795,2]
[394115794,1763304644703,-500.0,0.00014847,2]
[394115797,1763304644713,-420.0,0.00014906,2]
[394115798,1763304644722,-264.8,0.00014985,2]
[394115801,1763304644735,-264.8,0.00014985,2]
[394115803,1763304644745,-19929.1609594,0.00015,2]
[394115805,1763304644754,-168.0,0.00015057,2]
[394115807,1763304644764,-152.53,0.00015057,2]
[394115808,1763304644775,-152.53,0.00015057,2]
[394115811,1763304644784,-152.53,0.00015057,2]
[394115813,1763304644793,-152.53,0.00015057,2]
[394115814,1763304644803,-152.53,0.00015057,2]
[394115816,1763304644812,-152.53,0.00015057,2]
[394115818,1763304644821,-152.53,0.00015057,2]
[394115820,1763304644830,-206.508143,0.00015068,2]
[394115823,1763304644840,-800.0,0.00015068,2]
[394115825,1763304644849,-1000.0,0.00015121,2]
[394115827,1763304644859,-1000.0,0.00015121,2]
[394115828,1763304644868,-997.21368798,0.00015121,2]
[394115830,1763304644878,-1000.0,0.00015121,2]
[394115833,1763304644888,-505.40395855,0.00015121,2]
[394115834,1763304644897,-1000.0,0.00015121,2]
[394115837,1763304644907,-500.0,0.00015121,2]
[394115838,1763304644916,-500.0,0.00015121,2]
[394115840,1763304644926,-1000.0,0.00015121,2]
[394115843,1763304644936,-1017.04213383,0.00015121,2]
[394115845,1763304644945,-522.92159442,0.00015121,2]
[394115847,1763304644954,-1000.0,0.00015121,2]
[394115849,1763304644964,-309.21965085,0.00015121,2]
[394115851,1763304644973,-1000.0,0.00015121,2]
[394115853,1763304644982,-1000.0,0.00015121,2]
[394115855,1763304644991,-168.0,0.00015157,2]
[394115857,1763304645000,-291.66597092,0.0001525,2]
[394115858,1763304645009,-1000.0,0.000153,2]
[394115861,1763304645019,-1019.23860004,0.00015316,2]
[394115863,1763304645028,-2000.0,0.00015316,2]
[394115864,1763304645038,-500.0,0.00015342,2]
[394115867,1763304645047,-225.6286586,0.00015395,2]
[394115869,1763304645056,-720.0,0.00015484,2]
[394115871,1763304645066,-160.0,0.000155,2]
[394115872,1763304645075,-164.2628813,0.00015534,2]
[394115874,1763304645085,-382.4236393,0.00015534,2]
[394115876,1763304645094,-150.0,0.00015604,2]
[394115879,1763304645105,-150.0,0.00015604,2]
[394115881,1763304645114,-150.0,0.00015604,2]
[394115883,1763304645124,-100000.0,0.00015612,2]
[394115884,1763304645133,-1328.49559078,0.0001564,2]
[394115886,1763304645142,-1100.00002719,0.00015668,2]
[394115888,1763304645152,-1417.88563569,0.00015668,2]
[394115890,1763304645161,-480.63037156,0.00015668,2]
[394115892,1763304645171,-1500.0,0.00015668,2]
[394115903,1763304645180,-666.54612706,0.00015668,2]
[394115905,1763304645268,-1012.19074474,0.00015668,2]
[394115907,1763304645277,-500.96105219,0.00015668,2]
[394115909,1763304645286,-1500.0,0.00015668,2]
[394115911,1763304645295,-500.0,0.00015673,2]
[394115913,1763304645304,-168.0,0.00015755,2]
[394115915,1763304645313,-1000.0,0.000158,2]
[394115917,1763304645323,-321.96269075,0.00015835,2]
[394115919,1763304645332,-2500.0,0.00015864,2]
[394115921,1763304645341,-500.0,0.0001589,2]
[394115923,1763304645351,-579.53284335,0.00015951,2]
[394115925,1763304645360,-260.0,0.00016048,2]
[394115927,1763304645369,-1030.28061041,0.00016066,2]
[394115929,1763304645380,-225.66191382,0.00016093,2]
[394115931,1763304645390,-473.75844563,0.00016164,2]
[394115933,1763304645399,-1608.20364031,0.00016181,2]
[394115935,1763304645408,-1000.0,0.000162,2]
[394115937,1763304645418,-2000.0,0.00016216,2]
[394115939,1763304645427,-1000.0,0.00016221,2]
[394115941,1763304645436,-168.0,0.00016253,2]
[394115943,1763304645446,-168.0,0.00016304,2]
[394115945,1763304645456,-10818.57007878,0.00016307,2]
[394115947,1763304645466,-587.0,0.00016337,2]
[394115949,1763304645475,-168.0,0.00016402,2]
[394115951,1763304645484,-3000.0,0.00016412,2]
[394115953,1763304645494,-500.0,0.00016438,2]
[394115955,1763304645504,-500.0,0.00016438,2]
[394115957,1763304645513,-500.0,0.00016438,2]
[394115959,1763304645522,-500.0,0.00016438,2]
[394115961,1763304645532,-469.80835795,0.00016438,2]
[394115963,1763304645541,-500.0,0.00016438,2]
[394115965,1763304645550,-500.0,0.00016438,2]
[394115967,1763304645559,-535.72640938,0.00016438,2]
[394115969,1763304645568,-500.0,0.00016438,2]
[394115971,1763304645578,-535.72640938,0.00016438,2]
[394115973,1763304645587,-551.61505686,0.00016438,2]
[394115975,1763304645596,-535.72640938,0.00016438,2]
[394115977,1763304645604,-535.72640938,0.00016438,2]
[394115979,1763304645614,-535.72640938,0.00016438,2]
[394115981,1763304645623,-535.72640938,0.00016438,2]
[394115983,1763304645632,-535.72640938,0.00016438,2]
[394115985,1763304645641,-535.72640938,0.00016438,2]
[394115987,1763304645651,-535.72640938,0.00016438,2]
[394115989,1763304645661,-535.72640938,0.00016438,2]
[394115991,1763304645670,-535.72640938,0.00016438,2]
[394115993,1763304645679,-535.72640938,0.00016438,2]
[394115995,1763304645690,-535.72640938,0.00016438,2]
[394115997,1763304645702,-535.72640938,0.00016438,2]
[394115999,1763304645711,-535.72640938,0.00016438,2]
[394116001,1763304645722,-535.72640938,0.00016438,2]
[394116003,1763304645732,-535.72640938,0.00016438,2]
[394116005,1763304645743,-535.72640938,0.00016438,2]
[394116007,1763304645752,-535.72640938,0.00016438,2]
[394116009,1763304645762,-535.72640938,0.00016438,2]
[394116011,1763304645775,-535.72640938,0.00016438,2]
[394116013,1763304645784,-535.72640938,0.00016438,2]
[394116015,1763304645794,-535.72640938,0.00016438,2]
[394116017,1763304645803,-535.72640938,0.00016438,2]
[394116019,1763304645813,-535.72640938,0.00016438,2]
[394116021,1763304645823,-535.72640938,0.00016438,2]
[394116023,1763304645832,-535.72640938,0.00016438,2]
[394116025,1763304645842,-535.72640938,0.00016438,2]
[394116027,1763304645852,-535.72640938,0.00016438,2]
[394116030,1763304645861,-535.72640938,0.00016438,2]
[394116032,1763304645871,-535.72640938,0.00016438,2]
[394116033,1763304645881,-535.72640938,0.00016438,2]
[394116036,1763304645890,-535.72640938,0.00016438,2]
[394116037,1763304645899,-535.72640938,0.00016438,2]
[394116040,1763304645908,-535.72640938,0.00016438,2]
[394116042,1763304645918,-535.72640938,0.00016438,2]
[394116043,1763304645927,-527.63997302,0.00016438,2]
[394116046,1763304645937,-527.63997302,0.00016438,2]
[394116047,1763304645946,-527.63997302,0.00016438,2]
[394116050,1763304645956,-527.63997302,0.00016438,2]
[394116051,1763304645966,-527.63997302,0.00016438,2]
[394116053,1763304645975,-527.63997302,0.00016438,2]
[394116056,1763304645985,-527.63997302,0.00016438,2]
[394116058,1763304645994,-527.63997302,0.00016438,2]
[394116060,1763304646004,-527.63997302,0.00016438,2]
[394116061,1763304646013,-527.63997302,0.00016438,2]
[394116063,1763304646023,-527.63997302,0.00016438,2]
[394116065,1763304646033,-527.63997302,0.00016438,2]
[394116068,1763304646043,-527.63997302,0.00016438,2]
[394116070,1763304646054,-527.63997302,0.00016438,2]
[394116072,1763304646064,-527.63997302,0.00016438,2]
[394116074,1763304646073,-527.63997302,0.00016438,2]
[394116076,1763304646081,-527.63997302,0.00016438,2]
[394116078,1763304646091,-527.63997302,0.00016438,2]
[394116080,1763304646100,-527.63997302,0.00016438,2]
[394116082,1763304646110,-527.63997302,0.00016438,2]
[394116084,1763304646122,-527.63997302,0.00016438,2]
[394116086,1763304646136,-527.63997302,0.00016438,2]
[394116089,1763304646150,-527.63997302,0.00016438,2]
[394116091,1763304646163,-527.63997302,0.00016438,2]
[394116094,1763304646176,-527.63997302,0.00016438,2]
[394116096,1763304646186,-527.63997302,0.00016438,2]
[394116098,1763304646200,-527.63997302,0.00016438,2]
[394116101,1763304646212,-527.63997302,0.00016438,2]
[394116103,1763304646225,-521.14594258,0.00016438,2]
[394116105,1763304646237,-521.14594258,0.00016438,2]
[394116107,1763304646250,-521.14594258,0.00016438,2]
[394116110,1763304646263,-521.14594258,0.00016438,2]
[394116112,1763304646275,-521.14594258,0.00016438,2]
[394116114,1763304646289,-521.14594258,0.00016438,2]
[394116115,1763304646301,-521.14594258,0.00016438,2]
[394116116,1763304646313,-521.14594258,0.00016438,2]
[394116117,1763304646325,-521.14594258,0.00016438,2]
[394116118,1763304646337,-521.14594258,0.00016438,2]
[394116119,1763304646348,-521.14594258,0.00016438,2]
[394116120,1763304646361,-521.14594258,0.00016438,2]
[394116121,1763304646374,-521.14594258,0.00016438,2]
[394116122,1763304646386,-521.14594258,0.00016438,2]
[394116123,1763304646396,-521.14594258,0.00016438,2]
[394116124,1763304646407,-521.14594258,0.00016438,2]
[394116126,1763304646419,-521.14594258,0.00016438,2]
[394116128,1763304646430,-521.14594258,0.00016438,2]
[394116130,1763304646442,-521.14594258,0.00016438,2]
[394116133,1763304646455,-521.14594258,0.00016438,2]
[394116135,1763304646467,-521.14594259,0.00016438,2]
[394116138,1763304646479,-521.14594259,0.00016438,2]
[394116140,1763304646491,-521.14594259,0.00016438,2]
[394116142,1763304646504,-521.14594259,0.00016438,2]
[394116145,1763304646517,-521.14594259,0.00016438,2]
[394116147,1763304646529,-521.14594259,0.00016438,2]
[394116149,1763304646539,-500.0,0.00016438,2]
[394116151,1763304646550,-180.76,0.0001644,2]
[394116153,1763304646560,-162.6862413,0.00016473,2]
[394116156,1763304646571,-163.74908723,0.0001648,2]
[394116158,1763304646583,-360.0,0.00016596,2]
[394116160,1763304646596,-200.0,0.000166,2]
[394116163,1763304646609,-1716.04083358,0.00016727,2]
[394116165,1763304646620,-168.0,0.0001676,2]
[394116167,1763304646631,-2500.0,0.00016764,2]
[394116169,1763304646642,-1500.0,0.00016768,2]
[394116171,1763304646652,-166.0780867,0.00016776,2]
[394116174,1763304646664,-261.8496062,0.00016877,2]
[394116176,1763304646675,-168.0,0.0001689,2]
[394116178,1763304646687,-500.0,0.0001695,2]
[394116180,1763304646702,-500.0,0.0001695,2]
[394116182,1763304646713,-501.3279057,0.0001695,2]
[394116184,1763304646724,-2675.71450754,0.0001696,2]
[394116187,1763304646743,-500.0,0.00016973,2]
[394116190,1763304646755,-500.0,0.00016973,2]
[394116192,1763304646766,-500.0,0.00016973,2]
[394116194,1763304646781,-500.0,0.00016973,2]
[394116196,1763304646792,-500.0,0.00016986,2]
[394116199,1763304646803,-13649.79894133,0.00017,2]
[394116201,1763304646813,-2000.0,0.00017,2]
[394116203,1763304646824,-864.0,0.00017032,2]
[394116205,1763304646834,-354.0,0.00017057,2]
[394116207,1763304646846,-460.0,0.00017144,2]
[394116209,1763304646858,-416.0,0.0001725,2]
[394116211,1763304646869,-336.15739021,0.0001725,2]
[394116214,1763304646879,-3000.0,0.00017312,2]
[394116216,1763304646890,-2000.0,0.00017316,2]
[394116218,1763304646901,-1328.49559078,0.0001752,2]
[394116220,1763304646912,-1000.0,0.00017521,2]
[394116222,1763304646923,-1000.0,0.00017521,2]
[394116225,1763304646934,-1000.0,0.00017521,2]
[394116227,1763304646946,-244.72122097,0.00017521,2]
[394116229,1763304646957,-500.0,0.00017534,2]
[394116231,1763304646969,-560.0,0.00017692,2]
[394116233,1763304646979,-2149.0,0.00017746,2]
[394116236,1763304646991,-629.0,0.00017746,2]
[394116238,1763304647002,-988.0,0.00017746,2]
[394116240,1763304647013,-153.072728,0.0001777,3]
[394116242,1763304647023,-153.072728,0.00017836,3]
[394116244,1763304647035,-3500.0,0.0001786,2]
[394116247,1763304647053,-2500.0,0.00017864,2]
[394116250,1763304647072,-153.072728,0.00017901,3]
[394116253,1763304647087,-823.0,0.00017905,2]
[394116255,1763304647102,-500.13868427,0.00018,2]
[394116258,1763304647116,-500.0,0.00018,3]
[394116260,1763304647129,-111.50407645,0.00018,2]
[394116263,1763304647142,-27315.04566386,0.00018,2]
[394116265,1763304647155,-153.072728,0.00018011,5]
[394116268,1763304647168,-151.39428571,0.00018068,2]
[394116270,1763304647179,-1465.01463182,0.00018068,2]
[394116272,1763304647191,-1500.0,0.00018068,2]
[394116289,1763304647331,-500.0,0.00018082,2]
[394116291,1763304647343,-153.072728,0.00018132,5]
[394116293,1763304647353,-660.0,0.0001824,2]
[394116295,1763304647363,-1639.08057231,0.00018408,2]
[394116297,1763304647372,-1018.15850178,0.00018412,2]
[394116299,1763304647381,-150.0,0.00018604,2]
[394116301,1763304647390,-150.0,0.00018604,2]
[394116303,1763304647399,-2000.0,0.00018616,2]
[394116305,1763304647410,-500.0,0.0001863,2]
[394116307,1763304647419,-323.0828038,0.00018685,2]
[394116309,1763304647428,-1000.0,0.00018735,2]
[394116311,1763304647438,-760.0,0.00018788,2]
[394116313,1763304647447,-5058.42313449,0.00018818,2]
[394116315,1763304647457,-1726.2272,0.00018907,2]
[394116317,1763304647466,-2500.0,0.00019164,2]